Cogmind - Beta 14 @@@ ROGUE MODE // 2024.09.22 @ 03:27:16 Player: deadnoob Result: Destroyed by 99-TNT with 99-TNT's Nukerbomber Performance ------------- Evolutions (1) 500 Regions Visited (6) 1200 Robots Destroyed (89) 445 Value Destroyed (2032) 2032 Prototype IDs (32) 640 Alien Tech Used (0) 0 Bonus (521) 521 TOTAL SCORE: 5338 Bonus ------- High Alert Combat Kills 74 Follower Combat Kills 170 Aligned with FarCom 300 Friendly Fire -23 Cogmind --------- Core Integrity 0/400 Matter 238/300 Energy 91/100 System Corruption 0% Temperature Cool (0) Movement Core (50) Location -8/Mines Parts ------- > --- POWER (1) -------- (None) > --- PROPULSION (3) --- (None) > --- UTILITY (3) ------ (None) > --- WEAPON (2) ------- (None) > --- INVENTORY (5) ---- Light Assault Rifle Minigun Minigun Grenade Launcher Mining Laser Peak State ------------ > --- POWER ------------ Nuclear Core > --- PROPULSION ------- Light Treads Light Treads Light Treads > --- UTILITY ---------- Heat Sink Huge Storage Unit Insulated Plating > --- WEAPON ----------- Minigun Minigun > --- INVENTORY -------- Light Treads Potential Leg Potential Leg Heat Sink Seismic Detector 0b10 Alert Chip Insulated Plating Hacking Suite Hacking Suite Skeleton Box Light Assault Rifle Light Assault Rifle Autogun Minigun Minigun Grenade Launcher Rocket Launcher Datajack Mining Laser [Rating: 22] Favorites ----------- Power Ion Engine Engine Ion Engine Power Core Nuclear Core Propulsion Light Treads Treads Light Treads Leg Improved Aluminum Leg Flight Unit Improved Flight Unit Utility Seismic Detector Device Seismic Detector Storage Large Storage Unit Protection Insulated Plating Weapon Light Cannon Energy Gun EM Pulse Gun Ballistic Gun Minigun Ballistic Cannon Light Cannon Launcher Rocket Launcher Special Weapon Mining Laser Special Melee Weapon Datajack Build | -11 -10 -10 -9 -9 -9 -8 ------- Run | Yrd Mat Min Mat Min Exi Min Slots Evolved 2 | . . . 2 . . . Power . | . . . . . . . Propulsion 1 | . . . 1 . . . Utility 1 | . . . 1 . . . Weapon . | . . . . . . . Parts Attached 56 | 4 18 3 10 12 2 7 Power 4 | . 1 . 1 2 . . Engine 1 | . 1 . . . . . Core 3 | . . . 1 2 . . Reactor . | . . . . . . . Propulsion 14 | . 5 1 5 2 . 1 Treads 10 | . 2 1 4 2 . 1 Leg 3 | . 3 . . . . . Wheel . | . . . . . . . Hover . | . . . . . . . Flight 1 | . . . 1 . . . Utility 12 | 1 5 . 2 2 . 2 Device 5 | 1 2 . . 1 . 1 Storage 4 | . 3 . . 1 . . Processor . | . . . . . . . Hackware . | . . . . . . . Protection 3 | . . . 2 . . 1 Artifact . | . . . . . . . Weapon 26 | 3 7 2 2 6 2 4 Energy Gun 6 | 3 3 . . . . . Energy Cannon . | . . . . . . . Ballistic Gun 9 | . 2 . . 4 . 3 Ballistic Cannon 4 | . 2 1 1 . . . Launcher 5 | . . 1 1 1 1 1 Special Weapon 1 | . . . . 1 . . Impact Weapon . | . . . . . . . Slashing Weapon . | . . . . . . . Piercing Weapon . | . . . . . . . Special Melee Weapon 1 | . . . . . 1 . Unidentified Prototypes 1 | . . . 1 . . . Parts Lost 16 | . 3 . . 5 2 6 Power 3 | . 1 . . 1 . 1 Propulsion 4 | . . . . 2 . 2 Utility 3 | . . . . . 1 2 Weapon 6 | . 2 . . 2 1 1 Highest Loss Streak 4 | . 2 . . 2 2 4 To Critical Strikes . | . . . . . . . Average Slot Usage (%) 98 | . 99 100 100 99 93 93 Engine 5 | . 13 14 2 . . . Core 6 | . . . 8 11 11 9 Treads 29 | . 17 28 32 32 33 31 Leg 1 | . 10 . . . . . Device 12 | . 14 14 11 11 11 9 Storage 12 | . 14 14 11 11 11 11 Protection 7 | . . . 11 11 11 9 Energy Gun 1 | . 6 . . . . . Ballistic Gun 4 | . 4 . . 7 8 9 Ballistic Cannon 15 | . 16 27 21 14 . . Special Melee Weapon 1 | . . . . . 6 . Peak Build Rating 22 | 7 12 9 16 20 22 17 Average Rating 13 | 6 8 8 13 17 16 15 On Entrance 11 | 6 7 9 9 16 19 13 Naked Turns 2 | . . . . . . 2 Heaviest Build 97 | 15 32 32 37 97 97 97 Greatest Support 60 | 20 40 40 60 60 60 60 Greatest Overweight (x) 2 | . 1 . . 1 1 2 Average Overweight (x) . | . . . . . 1 . Largest Inventory Capacity 25 | 8 15 15 15 25 25 25 Average Capacity 17 | 8 12 15 15 18 25 24 Most Carried 19 | 5 15 15 15 18 19 14 Average Carried 14 | 3 11 14 14 15 15 10 Final Capacity 25 | 8 15 15 15 25 25 5 Final Carried 15 | 3 15 15 15 15 15 5 Class Distribution -------------------- 54% | Scavenger-Mutant 45% | Mutant Dominant Class ---------------- Scavenger-Mutant | -10/Materials Scavenger-Mutant | -10/Mines Mutant | -9/Materials Scavenger-Mutant | -9/Mines Mutant | -9/Exiles Mutant | -8/Mines Resources | -11 -10 -10 -9 -9 -9 -8 ----------- Run | Yrd Mat Min Mat Min Exi Min Matter Collected 1934 | 200 316 195 490 691 42 . Remotely . | . . . . . . . Salvage Created 2430 | 109 628 146 475 1045 . 27 Parts 185 | 9 49 10 42 72 . 3 Haulers Intercepted 6 | . 2 . 4 . . . Recyclers Shooed 1 | . 1 . . . . . Parts Field Recycled . | . . . . . . . Retrieved Matter . | . . . . . . . Parts Self-Destructed . | . . . . . . . Prevented . | . . . . . . . Kills | -11 -10 -10 -9 -9 -9 -8 ------- Run | Yrd Mat Min Mat Min Exi Min Combat Hostiles Destroyed 71 | . 10 7 12 38 . 4 Guns 27 | . 4 . . 23 . . Cannons 29 | . 5 4 9 11 . . AOE 15 | . 1 3 3 4 . 4 Classes Destroyed 11 | 2 7 . 1 1 . . Worker 3 | . 2 . 1 . . . Builder 2 | . 1 . 1 . . . Tunneler 6 | 2 2 . . 2 . . Hauler 6 | . 2 . 4 . . . Recycler 2 | 1 1 . . . . . Operator 2 | . 1 . 1 . . . Watcher 3 | . 1 . 2 . . . Swarmer 22 | . 1 3 3 11 . 4 Grunt 46 | . 9 4 8 25 . . Duelist 1 | . . . 1 . . . Assembled 2 | . . . . 2 . . Best Kill Streak 8 | 2 6 3 4 8 . 4 Combat Bots Only 8 | . 4 3 3 8 . 4 Max Kills in Single Turn 3 | 1 2 3 2 3 . 3 Gunslinging 1 | . . . . 1 . . Exploded 3 | . 1 3 1 3 . 3 Melee . | . . . . . . . Uniques/NPCs Destroyed . | . . . . . . . Combat | -11 -10 -10 -9 -9 -9 -8 -------- Run | Yrd Mat Min Mat Min Exi Min Hostile Shots Fired 234 | . 49 18 35 90 8 34 Missed 44 | . 10 5 11 14 . 4 Damage Taken 3092 | . 558 182 299 910 115 1028 Core 558 | . 130 . 40 48 11 329 Absorbed by Shields . | . . . . . . . Core Remaining (%) 74 | 100 . 48 . . . . Volleys Fired 226 | 13 50 14 51 95 1 2 Largest 2 | 2 2 2 2 2 1 1 Hottest 135 | 80 105 70 70 135 33 33 Shots Fired 406 | 22 100 26 99 156 1 2 Gun 185 | 22 76 . . 87 . . Cannon 202 | . 24 24 96 58 . . Launcher 10 | . . 2 3 2 1 2 Special 9 | . . . . 9 . . Kinetic 315 | . 50 24 96 145 . . Thermal 33 | 4 20 . . 9 . . Explosive 10 | . . 2 3 2 1 2 Electromagnetic 48 | 18 30 . . . . . Robot Hit Streak 17 | 6 15 5 6 17 . 2 Robot Miss Streak 5 | 3 5 4 5 3 . 1 Penetration Max . | . . . . . . . Secondary Targets 2 | . . . . 2 . . Max Gunslinging Chain 1 | . . . . 1 . . Shots Hit Robots 240 | 14 63 15 55 87 5 1 Core Hits 112 | 4 31 9 23 41 . 4 Critical Kills 1 | . . . . 1 . . Critical Parts Destroyed 1 | . . . . 1 . . Critical Strikes 8 | . . 3 3 2 . . Destroy 2 | . . . . 2 . . Blast 6 | . . 3 3 . . . Melee Attacks 5 | . . . . . 5 . Impact . | . . . . . . . Slashing . | . . . . . . . Piercing . | . . . . . . . Sneak Attacks 4 | . . . . . 4 . Combat Hostiles . | . . . . . . . Follow-up Attacks . | . . . . . . . Damage Inflicted 4986 | 210 1003 404 1203 1896 . 270 Guns 1931 | 179 622 . . 1130 . . Cannons 2028 | . 230 257 1035 506 . . Explosions 966 | 31 143 145 167 210 . 270 Melee . | . . . . . . . Ramming 61 | . 8 2 1 50 . . Kinetic 3310 | . 382 257 1035 1636 . . Thermal 587 | 75 350 . . 162 . . Explosive 630 | . . 145 167 48 . 270 Electromagnetic 398 | 135 263 . . . . . Impact . | . . . . . . . Slashing . | . . . . . . . Piercing . | . . . . . . . Highest Corruption . | . . . . . . . Average Corruption . | . . . . . . . Corruption Purged . | . . . . . . . Corruption Blocked . | . . . . . . . Overload Shots . | . . . . . . . Overflow Damage 40 | 3 2 6 5 22 . 2 Projectiles . | . . . . . . . Explosions 39 | 3 2 6 5 21 . 2 Melee 1 | . . . . 1 . . Knockbacks 26 | . 6 3 13 4 . . Impact . | . . . . . . . Kinetic 24 | . 4 3 13 4 . . Secondary 2 | . 2 . . . . . Self-Inflicted Damage 236 | . 87 22 . 89 . 38 Shots 8 | . 2 1 . 3 . 2 Rammed 8 | . . 2 2 4 . . Targets Rammed 12 | . 2 2 2 6 . . Kicked 1 | . 1 . . . . . Crushed 3 | . 1 . . 2 . . Highest Temperature 299 | 90 149 81 219 299 15 2 Average Temperature 62 | 40 43 24 53 84 15 1 Received Heat Transfer 911 | . 297 66 117 291 140 . Siege Activations . | . . . . . . . Robots Corrupted . | . . . . . . . Combat Hostiles . | . . . . . . . Parts Fried 3 | 1 . . . 2 . . Impact Corruptions 1 | . . . . 1 . . Robots Melted . | . . . . . . . Combat Hostiles . | . . . . . . . Parts Melted 1 | . 1 . . . . . Heat Transferred 1035 | 150 635 . . 250 . . Parts Sabotaged . | . . . . . . . Parts Stolen . | . . . . . . . Parts Stripped . | . . . . . . . Power Chain Reactions 3 | 1 2 . . . . . Alert | -11 -10 -10 -9 -9 -9 -8 ------- Run | Yrd Mat Min Mat Min Exi Min Peak Influence 586 | 15 260 165 398 586 . 102 Initial 108 | . 9 50 . 108 . . Average 142 | 8 118 59 204 181 . 95 Maximum Alert Level 2 | . 1 . 1 2 . . Low Security (%) 73 | 100 86 100 48 61 . 100 Level 1 19 | . 13 . 51 19 . . Level 2 6 | . . . . 18 . . Level 3 . | . . . . . . . Level 4 . | . . . . . . . Level 5 . | . . . . . . . High Security . | . . . . . . . Max Security . | . . . . . . . Squads Dispatched 8 | . 4 . 4 . . . Investigation 5 | . 2 . 3 . . . Extermination . | . . . . . . . Reinforcement 3 | . 2 . 1 . . . Assault . | . . . . . . . Garrison . | . . . . . . . Intercept . | . . . . . . . Searches Triggered . | . . . . . . . Construction Impeded . | . . . . . . . Haulers Reinforced . | . . . . . . . Active Scanning Responses . | . . . . . . . Cargo Convoy Interrupts . | . . . . . . . Stealth | -11 -10 -10 -9 -9 -9 -8 --------- Run | Yrd Mat Min Mat Min Exi Min Distress Signals 2 | . . . 2 . . . Communications Jammed . | . . . . . . . Distress Signals . | . . . . . . . Times Spotted 100 | . 22 7 23 38 5 5 Peak Tracking Total 9 | . 4 3 5 8 9 5 Tactical Retreats 7 | . 2 1 2 2 . . Traps | -11 -10 -10 -9 -9 -9 -8 ------- Run | Yrd Mat Min Mat Min Exi Min Traps Triggered 2 | . 2 . . . . . Indirectly . | . . . . . . . Trap Hack Attempts . | . . . . . . . Triggered . | . . . . . . . Disarmed . | . . . . . . . Reprogrammed 6 | . 6 . . . . . Reused 6 | . 6 . . . . . Traps Extracted . | . . . . . . . Installed . | . . . . . . . Triggered 6 | . 6 . . . . . Machines | -11 -10 -10 -9 -9 -9 -8 ---------- Run | Yrd Mat Min Mat Min Exi Min Machines Disabled 11 | . . 1 2 6 1 1 Max in Single Turn 6 | . . 1 1 6 1 1 Machines Repaired . | . . . . . . . Machines Dismantled . | . . . . . . . Machines Sabotaged . | . . . . . . . Overloaded Fab Kills . | . . . . . . . Hacking | -11 -10 -10 -9 -9 -9 -8 --------- Run | Yrd Mat Min Mat Min Exi Min Machines Accessed 16 | . 6 1 7 . 2 . Terminals 12 | . 6 1 5 . . . Fabricators . | . . . . . . . Repair Stations . | . . . . . . . Recycling Units 1 | . . . 1 . . . Scanalyzers 1 | . . . 1 . . . Garrison Access . | . . . . . . . Total Hacks 38 | . 16 4 16 . 2 . Successful 18 | . 4 2 10 . 2 . Failed 18 | . 11 1 6 . . . Catastrophic 4 | . 2 . 2 . . . Database Lockouts 2 | . 1 1 . . . . Manual 20 | . 7 4 8 . 1 . Terminals 32 | . 16 4 12 . . . Fabricators . | . . . . . . . Repair Stations . | . . . . . . . Recycling Units 1 | . . . 1 . . . Scanalyzers 3 | . . . 3 . . . Garrison Access . | . . . . . . . Terminal Hacks 13 | . 4 1 6 . 2 . Record 1 | . . . . . 1 . Robot Analysis 2 | . 1 1 . . . . Prototype ID Bank 1 | . 1 . . . . . Branch Access Points 1 | . . . 1 . . . Locate Traps 3 | . 1 . 2 . . . Reprogram Traps 1 | . 1 . . . . . Garrison Status 1 | . . . 1 . . . Zone Layout 2 | . . . 2 . . . Derelict Proto ID Bank 1 | . . . . . 1 . Fabricator Hacks . | . . . . . . . Repair Station Hacks . | . . . . . . . Recycling Unit Hacks . | . . . . . . . Scanalyzer 3 | . . . 3 . . . Insert Component 1 | . . . 1 . . . Analyze 2 | . . . 2 . . . Garrison Access Hacks . | . . . . . . . Unauthorized Hacks 2 | . . 1 1 . . . Terminals 1 | . . 1 . . . . Botnet 1 | . . 1 . . . . Fabricators . | . . . . . . . Repair Stations . | . . . . . . . Recycling Units 1 | . . . 1 . . . Tunnel 1 | . . . 1 . . . Scanalyzers . | . . . . . . . Garrison Access . | . . . . . . . Data Cores Recovered 2 | . 1 . 1 . . . Used 2 | . 1 . 1 . . . Hacking Detections 13 | . 6 1 6 . . . Full Trace Events 2 | . . . 2 . . . Feedback Events . | . . . . . . . Feedback Blocked . | . . . . . . . Robot Schematics Acquired . | . . . . . . . Robots Built . | . . . . . . . Authchips . | . . . . . . . Time . | . . . . . . . Total Robot Build Rating . | . . . . . . . Part Schematics Acquired 1 | . . . 1 . . . Parts Built . | . . . . . . . Authchips . | . . . . . . . Time . | . . . . . . . Total Part Build Rating . | . . . . . . . Parts Repaired . | . . . . . . . Time . | . . . . . . . Parts Recycled . | . . . . . . . Recycled Matter . | . . . . . . . Retrieved Matter . | . . . . . . . Retrieved Components . | . . . . . . . Parts Scanalyzed 1 | . . . 1 . . . Part Schematics Acquired 1 | . . . 1 . . . Parts Damaged . | . . . . . . . Bothacking | -11 -10 -10 -9 -9 -9 -8 ------------ Run | Yrd Mat Min Mat Min Exi Min Used RIF Installer . | . . . . . . . Robots Hacked 3 | . . . . . 3 . Non-combat 3 | . . . . . 3 . Combat . | . . . . . . . Robot Hacks Applied 3 | . . . . . 3 . parse_system 3 | . . . . . 3 . Relay Couplers Released . | . . . . . . . Fabnet Peak Effective % . | . . . . . . . Robots Rewired . | . . . . . . . Allies Hacked . | . . . . . . . Hacks Repelled . | . . . . . . . Allies | -11 -10 -10 -9 -9 -9 -8 -------- Run | Yrd Mat Min Mat Min Exi Min Total Allies 3 | . . 2 . 1 . . Largest Group 2 | . . 2 2 1 . . Highest-Rated Group 50 | . . 50 50 31 . . Highest-Rated Ally 31 | . . 31 31 31 . . Total Orders . | . . . . . . . Ally Attacks 46 | . . . 31 15 . . Total Damage 502 | . . . 315 187 . . Kills 7 | . . . 6 1 . . Allies Corrupted . | . . . . . . . Allies Melted . | . . . . . . . Intel | -11 -10 -10 -9 -9 -9 -8 ------- Run | Yrd Mat Min Mat Min Exi Min Robot Analysis Total 2 | . 1 1 . . . . Derelict Logs Recovered 4 | . . 2 . 2 . . Drone Launches . | . . . . . . . Drone Recoveries . | . . . . . . . Exploration | -11 -10 -10 -9 -9 -9 -8 ------------- Run | Yrd Mat Min Mat Min Exi Min Turns Passed 6138 | 77 1102 1050 979 1735 1102 93 Spaces Moved 2499 | 4 552 615 429 410 452 37 Core 5 | . . . . . . 5 Treads 2297 | . 359 615 429 410 452 32 Legs 197 | 4 193 . . . . . Wheels . | . . . . . . . Hover . | . . . . . . . Flight . | . . . . . . . Fastest Speed 50 | 120 120 160 160 160 240 50 Average Speed 178 | 120 146 160 160 199 240 218 Slowest Speed 320 | 120 190 160 160 240 240 320 Overloaded Moves . | . . . . . . . Propulsion Burnouts . | . . . . . . . Robots Hopped . | . . . . . . . Cave-ins Triggered . | . . . . . . . Exploration Rate (%) 57 | 2 76 97 35 90 87 14 Regions Visited 6 Branch Regions 4 Pre-discovered Areas 4 | . . 2 1 . 1 . Known Exits Taken 1 | . . . 1 . . . Unknown Exits Taken 5 | 1 1 1 . 1 1 . Scrap Searched 2 | . . 1 . 1 . . Spaces Dug . | . . . . . . . Terrain Destroyed 102 | 3 10 22 12 42 6 7 Melee . | . . . . . . . Projectile 4 | . . . . 4 . . AOE 98 | 3 10 22 12 38 6 7 Terrain Rammed . | . . . . . . . Walls Destroyed . | . . . . . . . Machines Disabled . | . . . . . . . Actions | -11 -10 -10 -9 -9 -9 -8 --------- Run | Yrd Mat Min Mat Min Exi Min Total 3765 | 53 748 654 633 1162 469 46 Wait 889 | 30 93 18 114 633 1 . Move 2493 | 3 551 614 428 409 451 37 Hop . | . . . . . . . Pick Up 40 | . 19 1 12 4 4 . Fast Attach 13 | 1 8 . 3 1 . . Attach 15 | . 2 . 2 5 1 5 Detach 4 | . 1 . 1 1 1 . Swap 28 | 3 8 3 5 6 1 2 Drop 40 | 3 14 2 15 2 4 . Fire 226 | 13 50 14 51 95 1 2 Melee 5 | . . . . . 5 . Ram . | . . . . . . . Kick 1 | . 1 . . . . . Crush 11 | . 1 2 2 6 . . Escape Stasis . | . . . . . . . Rewire . | . . . . . . . Trap . | . . . . . . . Miscellaneous . | . . . . . . . Route ------- -11/Scrapyard -10/Materials (discovered 2 exits: *Mat / *Min) -10/Mines (discovered 3 exits: *Mat x2 / Sub) -9/Materials -9/Mines (discovered 3 exits: [*Mat] / *Exi / [*Zio]) -9/Exiles -8/Mines (discovered 1 exit: [*Mat]) History --------- Turn | Location | Event 23 | -11/Scrapyard | Discovered new exit (range 3) 78 | -11/Scrapyard | Entered Materials 157 | -10/Materials | Central database locked down 297 | -10/Materials | Core integrity fell below 50% 335 | -10/Materials | Build established: Mutant 775 | -10/Materials | Build established: Scavenger-Mutant 959 | -10/Materials | Discovered new exit (range 13) 1141 | -10/Materials | Discovered new exit (range 14) 1180 | -10/Materials | Entered Mines 1230 | -10/Mines | Discovered new exit (range 4) 1326 | -10/Mines | Discovered new exit (range 12) 1625 | -10/Mines | Received a Rocket Launcher from a helpful Derelict 1673 | -10/Mines | Central database locked down 1753 | -10/Mines | Identified exit to Subcaves 2053 | -10/Mines | Learned location of Storage (-8) 2230 | -10/Mines | Entered Materials 2230 | -9/Materials | Accompanied by 2 allies 2230 | -9/Materials | Evolved 2 slots: Propulsion x1, Utility x1 2235 | -9/Materials | Led the pair of lost Derelicts to an unsafe place 2516 | -9/Materials | Build established: Mutant 2996 | -9/Materials | Identified exit to Mines 3209 | -9/Materials | Entered Mines 3252 | -9/Mines | Learned Materials terminal intel 3264 | -9/Mines | Received a Mining Laser from a helpful Derelict 3441 | -9/Mines | Found a hidden stash of uninstalled traps 3525 | -9/Mines | Learned Materials interactive machine intel 3534 | -9/Mines | Build established: Scavenger-Mutant 3538 | -9/Mines | Excavation squad dispatched 3538 | -9/Mines | A large section of the Mines collapsed 3788 | -9/Mines | Excavation squad dispatched 4038 | -9/Mines | Excavation squad dispatched 4288 | -9/Mines | Excavation squad dispatched 4538 | -9/Mines | Excavation squad dispatched 4788 | -9/Mines | Excavation squad dispatched 4841 | -9/Mines | Discovered new exit (range 9) 4869 | -9/Mines | Destroyed 8 combat bots 4883 | -9/Mines | A Derelict revealed a hidden shortcut to a safe place 4932 | -9/Mines | Deemed a non-threat by the Exiles lab entrance 4935 | -9/Mines | Discovered new exit (range 5) 4944 | -9/Mines | Entered Exiles 5002 | -9/Exiles | Met 8R-AWN 5045 | -9/Exiles | Met EX-HEX 5103 | -9/Exiles | Build established: Mutant 5144 | -9/Exiles | Met EX-DEC 5160 | -9/Exiles | Learned location of Zion (-7) 5201 | -9/Exiles | Met EX-BIN 5235 | -9/Exiles | Aligned with FarCom system 5237 | -9/Exiles | Given EX-Vault access code 5292 | -9/Exiles | Opened EX-Vault 5304 | -9/Exiles | Found 0b10 Alert Chip 5310 | -9/Exiles | Found Skeleton Box 5314 | -9/Exiles | Found Potential Leg 5317 | -9/Exiles | Found Potential Leg 5368 | -9/Exiles | Warned to stay clear of 0b10 Research branches 5667 | -9/Exiles | Visited The Gauntlet 6005 | -9/Exiles | Attacked by the Exiles 6027 | -9/Exiles | Discovered new exit (range 10) 6046 | -9/Exiles | Entered Mines 6078 | -8/Mines | Lost 4 parts (2u2w) 6127 | -8/Mines | 99-TNT came to Exiles' defense 6137 | -8/Mines | Released all parts (6) 6138 | -8/Mines | Core integrity fell below 50% 6138 | -8/Mines | Discovered new exit (range 8) 6139 | -8/Mines | Destroyed by 99-TNT with 99-TNT's Nukerbomber Last Messages --------------- 06047_ Rocket Launcher destroyed. 06047_ Destroyed Rocket Launcher. 06051_ S-10 Pest destroyed. 06065_ The unstable cave ceiling collapses. 06111_ T-07 Excavator is excavating. 06127_ 99-TNT: "I came as fast as I could... Wait, it was you!" 06127_ Lgt. Treads destroyed. 06127_ T-07 Excavator destroyed. 06129_ Nuclear Core destroyed. 06129_ Insulated Plating destroyed. 06129_ Lgt. Treads destroyed. 06131_ T-07 Excavator destroyed. 06133_ The unstable cave ceiling collapses. 06137_ Released Minigun. 06137_ Released Lgt. Treads. 06137_ Released Minigun. 06137_ Released Seismic Detector. 06137_ Released Lgt. Treads. 06137_ Released Huge Storage Unit. 06138_ EXIT=FOUND Map ----- +----------------------------------------------------+ | | | | | | | | | | | | | | | | | | | | | | | | | ???????####?????????????????????? | | ?????### # ####?????????????????? | | ?##### ####??????????????? | | # # ###????????????? | | # ###??????????? | | # #??????????? | | ############ | | !=! d | | [ = ############ | | [! ###??????????? | | [ #???????????? | | ####???????????? | | ###??????????????? | | @ ####????????????????? | | # ####???????????????????? | | # #??????????????????????? | | ?# #??????????????????????? | | # ??# #??????????????????????? | | ?###???# #??????????????????????? | | ??????? ??????????????????????? | | ???????k< ??????????????????????? | | ??????? ??????????????????????? | | ??????? ??????????????????????? | | ??????? ??????????????????????? | | ?????? ??????????????????????? | | ?????? ??????????????????????? | | ??????? ??????????????????????? | | ???????###??????????????????????? | | ????????????????????????????????? | | ????????????????????????????????? | | ????????????????????????????????? | | ????????????????????????????????? | | ????????????????????????????????? | | ????????????????????????????????? | | ????????????????????????????????? | | ????????????????????????????????? | | ????????????????????????????????? | | ????????????????????????????????? | +----------------------------------------------------+ Best States ------------- Heat Dissipation 47 Energy Generation 14 Energy Capacity 250 Matter Stores 300 Matter Capacity 300 Sight Range 16 Terrain Scan Density 10 Armor Coverage 150 Resistance: EM 15 Evasion (%) 55 Recoil Reduction 3 Item Schematics ----------------- Hacking Suite | -9/Materials | Scanalyzed Robot Schematics ------------------ None Fabricated ------------ Nothing Alien Tech Used ----------------- None Achievements -------------- None Challenges ------------ None Game ------ Seed SystemDeliveryDatajack Manual? 0 Play Time 00:37:24 Cumulative 289.6 hours Start 2024.09.22 @ 02:50:30 End 2024.09.22 @ 03:27:16 Sessions 1 Manual Loads 0 Difficulty Rogue Special Mode None Game No. 375 Rogue 375 Adventurer 0 Explorer 0 Win Type - Total 9 Types 8/0/0/1/0/0/0/0/0 Lore% 64 Gallery% 84 Achievement% 72 Wizard Run 0 Options --------- Layout 0 ASCII 0 Keyboard 0 Movement Numpad Keybinds 0 Fullscreen 2 Font 18/SmallcapsGlow Map View 76x50 Zoom Use 0% Tactical HUD 1 Map Filters NONE Filters NONE Steam 1 RUN: 8752c656-de4b-48e8-b0cf-db8dc624033f